[Event "Titled Tuesday Blitz March 07 Late 2023"]
[White "Hambleton, Aman"]
[Black "Hajiyev, Kanan"]
[WhiteFideId "2606577"]
[BlackFideId "13404148"]
[WhiteElo "2511"]
[BlackElo "2103"]
[Result "1-0"]
[Round "01"]
[TimeControl "180+2"]
[Date "2023.03.07"]
[WhiteClock "0:00:21"]
[BlackClock "0:00:06"]

1. d4 {[%clk 0:03:00]}  Nf6 {[%clk 0:02:55]} 2. Bf4 {[%clk 0:03:00]}  d5 {[%clk 0:02:53]} 3. e3 {[%clk 0:03:00]}  c5 {[%clk 0:02:54]} 4. c3 {[%clk 0:03:00]}  cxd4 {[%clk 0:02:55]} 5. exd4 {[%clk 0:03:01]}  Nc6 {[%clk 0:02:55]} 6. Bd3 {[%clk 0:02:58]}  Bg4 {[%clk 0:02:53]} 7. Qb3 {[%clk 0:02:58]}  Qd7 {[%clk 0:02:54]} 8. h3 {[%clk 0:02:57]}  Bh5 {[%clk 0:02:53]} 9. Nd2 {[%clk 0:02:58]}  e6 {[%clk 0:02:51]} 10. Ngf3 {[%clk 0:02:58]}  Bd6 {[%clk 0:02:50]} 11. Bxd6 {[%clk 0:02:33]}  Qxd6 {[%clk 0:02:51]} 12. O-O {[%clk 0:02:33]}  O-O {[%clk 0:02:51]} 13. Rfe1 {[%clk 0:02:33]}  Qc7 {[%clk 0:02:42]} 14. a4 {[%clk 0:02:32]}  Rac8 {[%clk 0:02:40]} 15. Ne5 {[%clk 0:02:30]}  Nxe5 {[%clk 0:02:38]} 16. Rxe5 {[%clk 0:02:31]}  Bg6 {[%clk 0:02:38]} 17. Bxg6 {[%clk 0:02:25]}  hxg6 {[%clk 0:02:39]} 18. g3 {[%clk 0:02:09]}  a6 {[%clk 0:02:32]} 19. a5 {[%clk 0:01:59]}  Rb8 {[%clk 0:02:19]} 20. Re3 {[%clk 0:01:51]}  Rfc8 {[%clk 0:02:13]} 21. Kg2 {[%clk 0:01:48]}  b5 {[%clk 0:01:59]} 22. axb6 {[%clk 0:01:49]}  Rxb6 {[%clk 0:01:58]} 23. Qa3 {[%clk 0:01:49]}  Rcb8 {[%clk 0:01:53]} 24. b4 {[%clk 0:01:38]}  Rc6 {[%clk 0:01:52]} 25. Rc1 {[%clk 0:01:38]}  a5 {[%clk 0:01:21]} 26. bxa5 {[%clk 0:01:32]}  Ra8 {[%clk 0:01:18]} 27. Ra1 {[%clk 0:01:22]}  Ne4 {[%clk 0:01:04]} 28. Nxe4 {[%clk 0:01:09]}  dxe4 {[%clk 0:01:05]} 29. a6 {[%clk 0:00:52]}  Qb6 {[%clk 0:00:42]} 30. Rxe4 {[%clk 0:00:41]}  Rxa6 {[%clk 0:00:42]} 31. Qxa6 {[%clk 0:00:42]}  Qxa6 {[%clk 0:00:43]} 32. Rxa6 {[%clk 0:00:42]}  Rxa6 {[%clk 0:00:44]} 33. Re2 {[%clk 0:00:39]}  Kf8 {[%clk 0:00:40]} 34. Kf3 {[%clk 0:00:39]}  Ke7 {[%clk 0:00:38]} 35. h4 {[%clk 0:00:37]}  Kd6 {[%clk 0:00:37]} 36. Ke4 {[%clk 0:00:37]}  f6 {[%clk 0:00:33]} 37. Rb2 {[%clk 0:00:36]}  Ra1 {[%clk 0:00:31]} 38. Rb7 {[%clk 0:00:35]}  Re1+ {[%clk 0:00:29]} 39. Kd3 {[%clk 0:00:34]}  Rd1+ {[%clk 0:00:27]} 40. Ke2 {[%clk 0:00:31]}  Rc1 {[%clk 0:00:27]} 41. Kd2 {[%clk 0:00:21]}  Rf1 {[%clk 0:00:27]} 42. Rxg7 {[%clk 0:00:21]}  Rxf2+ {[%clk 0:00:26]} 43. Ke3 {[%clk 0:00:21]}  Rc2 {[%clk 0:00:26]} 44. Kd3 {[%clk 0:00:22]}  Rh2 {[%clk 0:00:14]} 45. Rxg6 {[%clk 0:00:22]}  f5 {[%clk 0:00:15]} 46. c4 {[%clk 0:00:19]}  Rh1 {[%clk 0:00:15]} 47. d5 {[%clk 0:00:19]}  f4 {[%clk 0:00:03]} 48. Rxe6+ {[%clk 0:00:18]}  Kd7 {[%clk 0:00:04]} 49. gxf4 {[%clk 0:00:18]}  Rh3+ {[%clk 0:00:04]} 50. Ke4 {[%clk 0:00:18]}  Rxh4 {[%clk 0:00:05]} 51. c5 {[%clk 0:00:18]}  Rh1 {[%clk 0:00:05]} 52. Ra6 {[%clk 0:00:17]}  Re1+ {[%clk 0:00:06]} 53. Kf5 {[%clk 0:00:18]}  Rd1 {[%clk 0:00:06]} 54. Ra7+ {[%clk 0:00:18]}  Ke8 {[%clk 0:00:07]} 55. Ke6 {[%clk 0:00:18]}  Re1+ {[%clk 0:00:07]} 56. Kd6 {[%clk 0:00:19]}  Rf1 {[%clk 0:00:06]} 57. c6 {[%clk 0:00:18]}  Rxf4 {[%clk 0:00:05]} 58. Ra8+ {[%clk 0:00:19]}  Kf7 {[%clk 0:00:05]} 59. c7 {[%clk 0:00:20]}  Rc4 {[%clk 0:00:05]} 60. c8=Q {[%clk 0:00:20]}  Rxc8 {[%clk 0:00:06]} 61. Rxc8 {[%clk 0:00:21]} 1-0


[Site "https://www.chess.com"]

[Event "Titled Tuesday Blitz March 07 Late 2023"]
[White "Nasuta, Grzegorz"]
[Black "Miszler, Levente"]
[WhiteFideId "1141686"]
[BlackFideId "763276"]
[WhiteElo "2449"]
[BlackElo "2176"]
[Result "1-0"]
[Round "01"]
[TimeControl "180+2"]
[Date "2023.03.07"]
[WhiteClock "0:00:39"]
[BlackClock "0:01:04"]

1. e4 {[%clk 0:02:58]}  e6 {[%clk 0:02:57]} 2. d4 {[%clk 0:02:54]}  d5 {[%clk 0:02:57]} 3. Nc3 {[%clk 0:02:54]}  Bb4 {[%clk 0:02:54]} 4. exd5 {[%clk 0:02:53]}  exd5 {[%clk 0:02:54]} 5. Bd3 {[%clk 0:02:53]}  Nf6 {[%clk 0:02:52]} 6. Ne2 {[%clk 0:02:42]}  O-O {[%clk 0:02:52]} 7. O-O {[%clk 0:02:43]}  h6 {[%clk 0:02:49]} 8. Ng3 {[%clk 0:02:39]}  Nc6 {[%clk 0:02:44]} 9. Nce2 {[%clk 0:02:38]}  Re8 {[%clk 0:02:33]} 10. c3 {[%clk 0:02:38]}  Bd6 {[%clk 0:02:33]} 11. Bf4 {[%clk 0:02:38]}  Bg4 {[%clk 0:02:32]} 12. f3 {[%clk 0:02:38]}  Bxf4 {[%clk 0:02:25]} 13. Nxf4 {[%clk 0:02:37]}  Bd7 {[%clk 0:02:25]} 14. Qd2 {[%clk 0:02:22]}  Ne7 {[%clk 0:02:24]} 15. Rae1 {[%clk 0:02:20]}  c6 {[%clk 0:02:18]} 16. Re5 {[%clk 0:02:14]}  Qc7 {[%clk 0:02:07]} 17. Rfe1 {[%clk 0:02:14]}  Kf8 {[%clk 0:02:07]} 18. Nfh5 {[%clk 0:01:33]}  Nxh5 {[%clk 0:02:02]} 19. Nxh5 {[%clk 0:01:34]}  Ng6 {[%clk 0:01:56]} 20. Bxg6 {[%clk 0:01:33]}  fxg6 {[%clk 0:01:55]} 21. Nf4 {[%clk 0:01:31]}  Qd6 {[%clk 0:01:45]} 22. Nd3 {[%clk 0:01:24]}  Bf5 {[%clk 0:01:43]} 23. Rxe8+ {[%clk 0:01:22]}  Rxe8 {[%clk 0:01:44]} 24. Ne5 {[%clk 0:01:23]}  c5 {[%clk 0:01:38]} 25. Qf4 {[%clk 0:01:16]}  Qf6 {[%clk 0:01:29]} 26. g4 {[%clk 0:00:43]}  Bc8 {[%clk 0:01:14]} 27. Nxg6+ {[%clk 0:00:42]}  Kf7 {[%clk 0:01:14]} 28. Qxf6+ {[%clk 0:00:41]}  gxf6 {[%clk 0:01:13]} 29. Rxe8 {[%clk 0:00:41]}  Kxe8 {[%clk 0:01:14]} 30. dxc5 {[%clk 0:00:40]}  Kd7 {[%clk 0:01:04]} 31. Kf2 {[%clk 0:00:39]}  Kc6 {[%clk 0:01:04]} 32. Ne7+ {[%clk 0:00:39]} 1-0


[Site "https://www.chess.com"]

[Event "Titled Tuesday Blitz March 07 Late 2023"]
[White "Bouget, Alexandre"]
[Black "Bitoon, Richard"]
[WhiteFideId "681318"]
[BlackFideId "5201110"]
[WhiteElo "2177"]
[BlackElo "2374"]
[Result "0-1"]
[Round "01"]
[TimeControl "180+2"]
[Date "2023.03.07"]
[WhiteClock "0:00:06"]
[BlackClock "0:01:00"]

1. d4 {[%clk 0:03:00]}  Nf6 {[%clk 0:02:59]} 2. c4 {[%clk 0:02:59]}  g6 {[%clk 0:02:59]} 3. Nc3 {[%clk 0:03:00]}  Bg7 {[%clk 0:02:59]} 4. e4 {[%clk 0:02:59]}  O-O {[%clk 0:02:59]} 5. Be2 {[%clk 0:03:00]}  d6 {[%clk 0:02:59]} 6. Nf3 {[%clk 0:03:00]}  e5 {[%clk 0:02:59]} 7. O-O {[%clk 0:03:01]}  Nc6 {[%clk 0:02:59]} 8. d5 {[%clk 0:03:00]}  Ne7 {[%clk 0:02:58]} 9. Ne1 {[%clk 0:03:01]}  Nd7 {[%clk 0:02:58]} 10. Be3 {[%clk 0:03:02]}  f5 {[%clk 0:02:58]} 11. f3 {[%clk 0:03:02]}  f4 {[%clk 0:02:59]} 12. Bf2 {[%clk 0:03:03]}  g5 {[%clk 0:03:00]} 13. Rc1 {[%clk 0:03:02]}  Rf6 {[%clk 0:03:00]} 14. c5 {[%clk 0:03:02]}  a6 {[%clk 0:02:59]} 15. cxd6 {[%clk 0:03:02]}  cxd6 {[%clk 0:02:34]} 16. Kh1 {[%clk 0:02:51]}  Rh6 {[%clk 0:02:33]} 17. Bg1 {[%clk 0:02:48]}  Nf6 {[%clk 0:02:27]} 18. Na4 {[%clk 0:02:46]}  Nh5 {[%clk 0:02:27]} 19. Bb6 {[%clk 0:02:21]}  Qe8 {[%clk 0:02:19]} 20. Kg1 {[%clk 0:02:17]}  Ng3 {[%clk 0:02:20]} 21. Rc7 {[%clk 0:01:46]}  Qh5 {[%clk 0:02:03]} 22. Rxe7 {[%clk 0:01:30]}  Nh1 {[%clk 0:01:16]} 23. h3 {[%clk 0:00:56]}  Bxh3 {[%clk 0:01:15]} 24. Rf2 {[%clk 0:00:37]}  Ng3 {[%clk 0:01:10]} 25. Bf1 {[%clk 0:00:25]}  Bxg2 {[%clk 0:01:00]} 26. Rxg7+ {[%clk 0:00:10]}  Kxg7 {[%clk 0:01:01]} 27. Nxg2 {[%clk 0:00:06]}  Qh2# {[%clk 0:01:00]} 0-1


[Site "https://www.chess.com"]

[Event "Titled Tuesday Blitz March 07 Late 2023"]
[White "Mirzoev, Azer"]
[Black "Dodaro, Mattia"]
[WhiteFideId "13400304"]
[BlackFideId "28583400"]
[WhiteElo "2525"]
[BlackElo "2404"]
[Result "1-0"]
[Round "01"]
[TimeControl "180+2"]
[Date "2023.03.07"]
[WhiteClock "0:00:16"]
[BlackClock "0:00:06"]

1. c4 {[%clk 0:02:58]}  g6 {[%clk 0:03:00]} 2. Nc3 {[%clk 0:02:57]}  Bg7 {[%clk 0:03:00]} 3. Nf3 {[%clk 0:02:56]}  d6 {[%clk 0:03:01]} 4. d4 {[%clk 0:02:56]}  Nd7 {[%clk 0:03:00]} 5. Bg5 {[%clk 0:02:54]}  Ngf6 {[%clk 0:02:59]} 6. e3 {[%clk 0:02:54]}  O-O {[%clk 0:02:59]} 7. Be2 {[%clk 0:02:53]}  b6 {[%clk 0:03:00]} 8. O-O {[%clk 0:02:52]}  Bb7 {[%clk 0:03:00]} 9. h3 {[%clk 0:02:53]}  h6 {[%clk 0:03:00]} 10. Bh4 {[%clk 0:02:52]}  Ne4 {[%clk 0:02:59]} 11. Nxe4 {[%clk 0:02:50]}  Bxe4 {[%clk 0:03:00]} 12. Rc1 {[%clk 0:02:49]}  c5 {[%clk 0:02:57]} 13. b3 {[%clk 0:02:42]}  Rc8 {[%clk 0:02:52]} 14. Qd2 {[%clk 0:02:41]}  cxd4 {[%clk 0:02:50]} 15. Nxd4 {[%clk 0:02:38]}  Ne5 {[%clk 0:02:40]} 16. Rfd1 {[%clk 0:02:37]}  Nc6 {[%clk 0:02:36]} 17. Nb5 {[%clk 0:02:35]}  a6 {[%clk 0:02:33]} 18. Nc3 {[%clk 0:02:35]}  Bf5 {[%clk 0:02:28]} 19. Nd5 {[%clk 0:02:35]}  Be6 {[%clk 0:02:21]} 20. e4 {[%clk 0:02:31]}  Bxd5 {[%clk 0:02:16]} 21. cxd5 {[%clk 0:02:24]}  Nd4 {[%clk 0:02:15]} 22. Bxa6 {[%clk 0:02:22]}  Ra8 {[%clk 0:02:14]} 23. Bf1 {[%clk 0:02:20]}  Qd7 {[%clk 0:02:08]} 24. Rc4 {[%clk 0:02:15]}  e5 {[%clk 0:01:35]} 25. dxe6 {[%clk 0:02:14]}  Nxe6 {[%clk 0:01:35]} 26. Bg3 {[%clk 0:02:03]}  Rfd8 {[%clk 0:01:29]} 27. Rcc1 {[%clk 0:01:45]}  Qb7 {[%clk 0:01:28]} 28. Bc4 {[%clk 0:01:43]}  Qxe4 {[%clk 0:01:17]} 29. Bd5 {[%clk 0:01:42]}  Qf5 {[%clk 0:01:02]} 30. Bxa8 {[%clk 0:01:42]}  Rxa8 {[%clk 0:01:03]} 31. Qc2 {[%clk 0:01:35]}  Qb5 {[%clk 0:00:54]} 32. a4 {[%clk 0:01:27]}  Qh5 {[%clk 0:00:42]} 33. Qe4 {[%clk 0:01:20]}  Re8 {[%clk 0:00:36]} 34. Rxd6 {[%clk 0:01:14]}  Kh7 {[%clk 0:00:32]} 35. Qd5 {[%clk 0:00:53]}  g5 {[%clk 0:00:22]} 36. Rd7 {[%clk 0:00:51]}  Nd4 {[%clk 0:00:18]} 37. Kh2 {[%clk 0:00:38]}  Re6 {[%clk 0:00:08]} 38. Rcc7 {[%clk 0:00:34]}  Qd1 {[%clk 0:00:03]} 39. Rxf7 {[%clk 0:00:20]}  Rg6 {[%clk 0:00:01]} 40. Rxg7+ {[%clk 0:00:18]}  Rxg7 {[%clk 0:00:02]} 41. Rxg7+ {[%clk 0:00:18]}  Kxg7 {[%clk 0:00:02]} 42. Be5+ {[%clk 0:00:18]}  Kg6 {[%clk 0:00:03]} 43. Qxd4 {[%clk 0:00:19]}  Qe2 {[%clk 0:00:04]} 44. Qd5 {[%clk 0:00:18]}  Qxf2 {[%clk 0:00:02]} 45. Bg3 {[%clk 0:00:18]}  Qc2 {[%clk 0:00:02]} 46. Qc4 {[%clk 0:00:17]}  Qe2 {[%clk 0:00:01]} 47. Qxe2 {[%clk 0:00:17]}  Kf5 {[%clk 0:00:01]} 48. Qf3+ {[%clk 0:00:15]}  Ke6 {[%clk 0:00:01]} 49. Qc6+ {[%clk 0:00:15]}  Kf5 {[%clk 0:00:02]} 50. Qxb6 {[%clk 0:00:16]}  Ke4 {[%clk 0:00:02]} 51. Qb5 {[%clk 0:00:16]}  Ke3 {[%clk 0:00:02]} 52. Qb6+ {[%clk 0:00:16]}  Kd2 {[%clk 0:00:03]} 53. Qxh6 {[%clk 0:00:16]}  Kc2 {[%clk 0:00:04]} 54. Qg6+ {[%clk 0:00:15]}  Kb2 {[%clk 0:00:05]} 55. Qxg5 {[%clk 0:00:15]}  Ka3 {[%clk 0:00:06]} 56. h4 {[%clk 0:00:16]} 1-0


[Site "https://www.chess.com"]

[Event "Titled Tuesday Blitz March 07 Late 2023"]
[White "Larino Nieto, David"]
[Black "Vaglio Munoz, Jaime"]
[WhiteFideId "2256444"]
[BlackFideId "6500145"]
[WhiteElo "2506"]
[BlackElo "2199"]
[Result "1-0"]
[Round "01"]
[TimeControl "180+2"]
[Date "2023.03.07"]
[WhiteClock "0:02:00"]
[BlackClock "0:00:02"]

1. e4 {[%clk 0:03:00]}  d6 {[%clk 0:03:00]} 2. Nc3 {[%clk 0:03:00]}  Nf6 {[%clk 0:03:01]} 3. g3 {[%clk 0:03:00]}  e5 {[%clk 0:02:58]} 4. Bg2 {[%clk 0:03:01]}  Be7 {[%clk 0:02:58]} 5. Nge2 {[%clk 0:03:01]}  O-O {[%clk 0:02:58]} 6. O-O {[%clk 0:03:02]}  Re8 {[%clk 0:02:59]} 7. h3 {[%clk 0:03:03]}  Bf8 {[%clk 0:02:59]} 8. d4 {[%clk 0:03:03]}  c6 {[%clk 0:02:57]} 9. g4 {[%clk 0:03:03]}  Nbd7 {[%clk 0:02:49]} 10. f4 {[%clk 0:03:02]}  exd4 {[%clk 0:02:34]} 11. Nxd4 {[%clk 0:03:03]}  Nc5 {[%clk 0:02:34]} 12. Re1 {[%clk 0:03:04]}  d5 {[%clk 0:02:26]} 13. e5 {[%clk 0:03:04]}  Nfe4 {[%clk 0:02:26]} 14. Nxe4 {[%clk 0:03:03]}  Nxe4 {[%clk 0:02:26]} 15. c3 {[%clk 0:02:55]}  Qh4 {[%clk 0:01:47]} 16. Be3 {[%clk 0:02:34]}  h5 {[%clk 0:01:26]} 17. Nf5 {[%clk 0:02:34]}  Bxf5 {[%clk 0:01:24]} 18. gxf5 {[%clk 0:02:35]}  Bc5 {[%clk 0:00:55]} 19. Bxc5 {[%clk 0:02:17]}  Nxc5 {[%clk 0:00:55]} 20. Qd4 {[%clk 0:02:17]}  b6 {[%clk 0:00:47]} 21. Rad1 {[%clk 0:02:15]}  Rad8 {[%clk 0:00:39]} 22. Qf2 {[%clk 0:02:15]}  Qxf2+ {[%clk 0:00:36]} 23. Kxf2 {[%clk 0:02:16]}  g6 {[%clk 0:00:27]} 24. f6 {[%clk 0:02:05]}  a5 {[%clk 0:00:18]} 25. h4 {[%clk 0:02:05]}  Kh7 {[%clk 0:00:16]} 26. Bf3 {[%clk 0:02:05]}  Na4 {[%clk 0:00:13]} 27. Rd2 {[%clk 0:02:04]}  b5 {[%clk 0:00:14]} 28. Rg1 {[%clk 0:02:02]}  Nb6 {[%clk 0:00:10]} 29. Rg5 {[%clk 0:02:01]}  Nc4 {[%clk 0:00:08]} 30. Re2 {[%clk 0:02:02]}  Kh6 {[%clk 0:00:04]} 31. b3 {[%clk 0:02:02]}  Nb6 {[%clk 0:00:03]} 32. f5 {[%clk 0:02:03]}  Rg8 {[%clk 0:00:02]} 33. e6 {[%clk 0:02:02]}  Rdf8 {[%clk 0:00:02]} 34. e7 {[%clk 0:02:00]} 1-0


[Site "https://www.chess.com"]

[Event "Titled Tuesday Blitz March 07 Late 2023"]
[White "Li, Hui"]
[Black "Weichhold, Pawel"]
[WhiteFideId "15400310"]
[BlackFideId "1139703"]
[WhiteElo "1967"]
[BlackElo "2330"]
[Result "0-1"]
[Round "01"]
[TimeControl "180+2"]
[Date "2023.03.07"]
[WhiteClock "0:00:01"]
[BlackClock "0:00:11"]

1. e4 {[%clk 0:02:59]}  c5 {[%clk 0:02:59]} 2. Nf3 {[%clk 0:02:59]}  Nc6 {[%clk 0:03:00]} 3. d4 {[%clk 0:02:59]}  cxd4 {[%clk 0:03:01]} 4. Nxd4 {[%clk 0:03:00]}  g6 {[%clk 0:03:01]} 5. Nc3 {[%clk 0:03:00]}  Bg7 {[%clk 0:03:02]} 6. Be3 {[%clk 0:03:01]}  Nf6 {[%clk 0:03:02]} 7. Bc4 {[%clk 0:03:01]}  O-O {[%clk 0:03:03]} 8. Bb3 {[%clk 0:03:01]}  d6 {[%clk 0:03:03]} 9. f3 {[%clk 0:03:01]}  Bd7 {[%clk 0:03:04]} 10. Qd2 {[%clk 0:03:01]}  Rc8 {[%clk 0:03:04]} 11. O-O-O {[%clk 0:03:00]}  Nxd4 {[%clk 0:03:04]} 12. Bxd4 {[%clk 0:03:00]}  b5 {[%clk 0:03:05]} 13. Nd5 {[%clk 0:02:24]}  Nxd5 {[%clk 0:03:03]} 14. Bxg7 {[%clk 0:02:23]}  Kxg7 {[%clk 0:03:04]} 15. exd5 {[%clk 0:02:19]}  Kg8 {[%clk 0:02:55]} 16. h4 {[%clk 0:01:52]}  a5 {[%clk 0:02:55]} 17. a3 {[%clk 0:01:51]}  b4 {[%clk 0:02:33]} 18. axb4 {[%clk 0:01:51]}  axb4 {[%clk 0:02:33]} 19. Qxb4 {[%clk 0:01:51]}  Rb8 {[%clk 0:02:26]} 20. Qd4 {[%clk 0:01:41]}  Qa5 {[%clk 0:02:04]} 21. h5 {[%clk 0:01:13]}  Rb4 {[%clk 0:01:51]} 22. Qe3 {[%clk 0:00:59]}  Qa1+ {[%clk 0:00:42]} 23. Kd2 {[%clk 0:00:59]}  Qxb2 {[%clk 0:00:42]} 24. hxg6 {[%clk 0:00:51]}  hxg6 {[%clk 0:00:35]} 25. Qh6 {[%clk 0:00:42]}  Qg7 {[%clk 0:00:27]} 26. Qxg7+ {[%clk 0:00:36]}  Kxg7 {[%clk 0:00:28]} 27. Rhe1 {[%clk 0:00:26]}  Kf6 {[%clk 0:00:28]} 28. Re3 {[%clk 0:00:24]}  Rb7 {[%clk 0:00:21]} 29. Rde1 {[%clk 0:00:24]}  Bb5 {[%clk 0:00:20]} 30. Rc3 {[%clk 0:00:23]}  Rh8 {[%clk 0:00:20]} 31. Rce3 {[%clk 0:00:13]}  Rh2 {[%clk 0:00:18]} 32. Rg1 {[%clk 0:00:13]}  g5 {[%clk 0:00:18]} 33. Ke1 {[%clk 0:00:12]}  Bd7 {[%clk 0:00:17]} 34. Kf2 {[%clk 0:00:11]}  Bf5 {[%clk 0:00:18]} 35. Kg3 {[%clk 0:00:10]}  Rh4 {[%clk 0:00:18]} 36. Rge1 {[%clk 0:00:09]}  Rd4 {[%clk 0:00:17]} 37. Kf2 {[%clk 0:00:06]}  Rdb4 {[%clk 0:00:17]} 38. R1e2 {[%clk 0:00:06]}  R4b5 {[%clk 0:00:17]} 39. Re1 {[%clk 0:00:06]}  Rc5 {[%clk 0:00:18]} 40. R1e2 {[%clk 0:00:06]}  Rbc7 {[%clk 0:00:18]} 41. g3 {[%clk 0:00:04]}  Bxc2 {[%clk 0:00:16]} 42. Bxc2 {[%clk 0:00:05]}  Rxc2 {[%clk 0:00:17]} 43. Rxe7 {[%clk 0:00:04]}  Rxe2+ {[%clk 0:00:11]} 44. Rxe2 {[%clk 0:00:05]}  Rc5 {[%clk 0:00:12]} 45. Rd2 {[%clk 0:00:05]}  Ke5 {[%clk 0:00:12]} 46. Ke3 {[%clk 0:00:05]}  Rxd5 {[%clk 0:00:09]} 47. f4+ {[%clk 0:00:05]}  gxf4+ {[%clk 0:00:06]} 48. gxf4+ {[%clk 0:00:06]}  Ke6 {[%clk 0:00:07]} 49. Rh2 {[%clk 0:00:07]}  Ra5 {[%clk 0:00:06]} 50. Rh6+ {[%clk 0:00:07]}  f6 {[%clk 0:00:06]} 51. Rh8 {[%clk 0:00:07]}  Ra4 {[%clk 0:00:05]} 52. Rd8 {[%clk 0:00:06]}  Ra3+ {[%clk 0:00:05]} 53. Ke4 {[%clk 0:00:04]}  Ra4+ {[%clk 0:00:06]} 54. Ke3 {[%clk 0:00:04]}  Ra6 {[%clk 0:00:07]} 55. Kf3 {[%clk 0:00:04]}  Kf5 {[%clk 0:00:07]} 56. Kg3 {[%clk 0:00:02]}  Ra3+ {[%clk 0:00:07]} 57. Kg2 {[%clk 0:00:02]}  Rd3 {[%clk 0:00:08]} 58. Kf2 {[%clk 0:00:02]}  Kxf4 {[%clk 0:00:08]} 59. Ke2 {[%clk 0:00:02]}  Rd5 {[%clk 0:00:08]} 60. Rf8 {[%clk 0:00:02]}  Ke5 {[%clk 0:00:07]} 61. Ke3 {[%clk 0:00:02]}  Kf5 {[%clk 0:00:07]} 62. Kf3 {[%clk 0:00:02]}  Rd3+ {[%clk 0:00:07]} 63. Ke2 {[%clk 0:00:02]}  Ra3 {[%clk 0:00:08]} 64. Rd8 {[%clk 0:00:02]}  Ra6 {[%clk 0:00:09]} 65. Ke3 {[%clk 0:00:02]}  Ke6 {[%clk 0:00:09]} 66. Ke4 {[%clk 0:00:02]}  Ra4+ {[%clk 0:00:09]} 67. Ke3 {[%clk 0:00:02]}  f5 {[%clk 0:00:10]} 68. Re8+ {[%clk 0:00:02]}  Kd5 {[%clk 0:00:10]} 69. Rf8 {[%clk 0:00:03]}  Re4+ {[%clk 0:00:09]} 70. Kf3 {[%clk 0:00:03]}  Ke5 {[%clk 0:00:10]} 71. Re8+ {[%clk 0:00:02]}  Kd4 {[%clk 0:00:10]} 72. Rf8 {[%clk 0:00:03]}  Re5 {[%clk 0:00:10]} 73. Kf4 {[%clk 0:00:03]}  Re1 {[%clk 0:00:11]} 74. Rd8 {[%clk 0:00:02]}  Rf1+ {[%clk 0:00:11]} 75. Kg3 {[%clk 0:00:02]}  d5 {[%clk 0:00:12]} 76. Kg2 {[%clk 0:00:02]}  Re1 {[%clk 0:00:12]} 77. Kf2 {[%clk 0:00:03]}  Re7 {[%clk 0:00:12]} 78. Kf3 {[%clk 0:00:03]}  Kc4 {[%clk 0:00:12]} 79. Kf4 {[%clk 0:00:03]}  d4 {[%clk 0:00:12]} 80. Kxf5 {[%clk 0:00:02]}  d3 {[%clk 0:00:13]} 81. Kf4 {[%clk 0:00:02]}  Kc3 {[%clk 0:00:13]} 82. Kf3 {[%clk 0:00:02]}  d2 {[%clk 0:00:13]} 83. Rc8+ {[%clk 0:00:02]}  Kd3 {[%clk 0:00:14]} 84. Rd8+ {[%clk 0:00:03]}  Kc2 {[%clk 0:00:14]} 85. Rc8+ {[%clk 0:00:03]}  Kd1 {[%clk 0:00:14]} 86. Kf2 {[%clk 0:00:02]}  Re5 {[%clk 0:00:14]} 87. Rd8 {[%clk 0:00:01]}  Re7 {[%clk 0:00:11]} 0-1


[Site "https://www.chess.com"]

[Event "Titled Tuesday Blitz March 07 Late 2023"]
[White "Wieczorek, Oskar"]
[Black "Chan, Kim Yew"]
[WhiteFideId "1133950"]
[BlackFideId "5717981"]
[WhiteElo "2418"]
[BlackElo "2206"]
[Result "1-0"]
[Round "01"]
[TimeControl "180+2"]
[Date "2023.03.07"]
[WhiteClock "0:01:14"]
[BlackClock "0:00:01"]

1. e4 {[%clk 0:03:00]}  e5 {[%clk 0:02:58]} 2. Nf3 {[%clk 0:03:01]}  Nf6 {[%clk 0:02:57]} 3. Nc3 {[%clk 0:03:01]}  Nc6 {[%clk 0:02:56]} 4. h3 {[%clk 0:03:01]}  d5 {[%clk 0:02:40]} 5. exd5 {[%clk 0:02:55]}  Nxd5 {[%clk 0:02:41]} 6. Bb5 {[%clk 0:02:55]}  Nxc3 {[%clk 0:02:40]} 7. bxc3 {[%clk 0:02:56]}  Bd6 {[%clk 0:02:38]} 8. d4 {[%clk 0:02:55]}  exd4 {[%clk 0:02:37]} 9. cxd4 {[%clk 0:02:56]}  O-O {[%clk 0:02:36]} 10. O-O {[%clk 0:02:56]}  Bf5 {[%clk 0:02:24]} 11. c4 {[%clk 0:02:55]}  Be4 {[%clk 0:02:10]} 12. Ng5 {[%clk 0:02:52]}  Bg6 {[%clk 0:02:09]} 13. Nf3 {[%clk 0:02:53]}  Be4 {[%clk 0:02:08]} 14. Bb2 {[%clk 0:02:46]}  a6 {[%clk 0:01:55]} 15. Ba4 {[%clk 0:02:46]}  Re8 {[%clk 0:01:46]} 16. d5 {[%clk 0:02:43]}  b5 {[%clk 0:01:36]} 17. cxb5 {[%clk 0:02:39]}  Bxf3 {[%clk 0:01:36]} 18. Qxf3 {[%clk 0:02:36]}  Ne5 {[%clk 0:01:35]} 19. Qc3 {[%clk 0:02:24]}  f6 {[%clk 0:01:16]} 20. bxa6 {[%clk 0:02:20]}  Rf8 {[%clk 0:01:11]} 21. Bb5 {[%clk 0:02:16]}  Qb8 {[%clk 0:01:00]} 22. a4 {[%clk 0:02:14]}  Qb6 {[%clk 0:01:00]} 23. Ba3 {[%clk 0:02:06]}  Rfd8 {[%clk 0:00:54]} 24. Rfc1 {[%clk 0:02:04]}  Bxa3 {[%clk 0:00:31]} 25. Qxa3 {[%clk 0:01:43]}  Rxd5 {[%clk 0:00:29]} 26. Qa2 {[%clk 0:01:44]}  Rd8 {[%clk 0:00:11]} 27. Rab1 {[%clk 0:01:38]}  Qa7 {[%clk 0:00:08]} 28. Rd1 {[%clk 0:01:35]}  Qc5 {[%clk 0:00:03]} 29. Rbc1 {[%clk 0:01:19]}  Qd6 {[%clk 0:00:02]} 30. Rxd5 {[%clk 0:01:13]}  Qxd5 {[%clk 0:00:03]} 31. Qxd5+ {[%clk 0:01:13]}  Rxd5 {[%clk 0:00:03]} 32. Rxc7 {[%clk 0:01:14]}  Rd8 {[%clk 0:00:01]} 33. a7 {[%clk 0:01:14]} 1-0


[Site "https://www.chess.com"]

[Event "Titled Tuesday Blitz March 07 Late 2023"]
[White "Davidson, Kevin"]
[Black "Korchmar, Vasiliy"]
[WhiteFideId "2056810"]
[BlackFideId "24131750"]
[WhiteElo "2151"]
[BlackElo "2370"]
[Result "0-1"]
[Round "01"]
[TimeControl "180+2"]
[Date "2023.03.07"]
[WhiteClock "0:00:03"]
[BlackClock "0:00:22"]

1. e4 {[%clk 0:03:00]}  c5 {[%clk 0:03:00]} 2. Nf3 {[%clk 0:03:00]}  d6 {[%clk 0:03:00]} 3. d4 {[%clk 0:03:00]}  cxd4 {[%clk 0:03:01]} 4. Nxd4 {[%clk 0:03:01]}  Nf6 {[%clk 0:03:01]} 5. Nc3 {[%clk 0:03:01]}  Nc6 {[%clk 0:03:02]} 6. Nd5 {[%clk 0:03:01]}  Nxd5 {[%clk 0:02:46]} 7. exd5 {[%clk 0:03:02]}  Qa5+ {[%clk 0:02:46]} 8. Bd2 {[%clk 0:03:02]}  Qxd5 {[%clk 0:02:46]} 9. Nb5 {[%clk 0:03:02]}  Qe6+ {[%clk 0:02:46]} 10. Be2 {[%clk 0:03:02]}  Qd7 {[%clk 0:02:47]} 11. c4 {[%clk 0:03:02]}  e6 {[%clk 0:02:22]} 12. Bf4 {[%clk 0:03:00]}  e5 {[%clk 0:02:09]} 13. Be3 {[%clk 0:02:58]}  Be7 {[%clk 0:02:05]} 14. O-O {[%clk 0:02:57]}  O-O {[%clk 0:02:05]} 15. Qd2 {[%clk 0:02:56]}  Rd8 {[%clk 0:01:55]} 16. Rfd1 {[%clk 0:02:53]}  b6 {[%clk 0:01:49]} 17. Bf3 {[%clk 0:02:38]}  Bb7 {[%clk 0:01:49]} 18. Rac1 {[%clk 0:02:32]}  Rac8 {[%clk 0:01:47]} 19. Bd5 {[%clk 0:02:24]}  Bf8 {[%clk 0:01:31]} 20. f4 {[%clk 0:02:08]}  exf4 {[%clk 0:01:26]} 21. Bxf4 {[%clk 0:02:08]}  Ne5 {[%clk 0:01:25]} 22. Nxa7 {[%clk 0:01:43]}  Ra8 {[%clk 0:01:13]} 23. Nb5 {[%clk 0:01:33]}  Bxd5 {[%clk 0:01:10]} 24. Qxd5 {[%clk 0:01:30]}  Qg4 {[%clk 0:00:41]} 25. Bxe5 {[%clk 0:01:11]}  dxe5 {[%clk 0:00:41]} 26. Qxd8 {[%clk 0:01:07]}  Rxd8 {[%clk 0:00:42]} 27. Rxd8 {[%clk 0:01:06]}  g6 {[%clk 0:00:42]} 28. Nd6 {[%clk 0:00:32]}  Kg7 {[%clk 0:00:34]} 29. Ne8+ {[%clk 0:00:16]}  Kh6 {[%clk 0:00:34]} 30. Nf6 {[%clk 0:00:10]}  Qg5 {[%clk 0:00:32]} 31. Rf1 {[%clk 0:00:08]}  Bc5+ {[%clk 0:00:22]} 32. Kh1 {[%clk 0:00:09]}  Bf2 {[%clk 0:00:23]} 33. Ng8+ {[%clk 0:00:06]}  Kg7 {[%clk 0:00:23]} 34. h3 {[%clk 0:00:03]}  Qxd8 {[%clk 0:00:22]} 0-1


[Site "https://www.chess.com"]